[Event "Chinese Championship-B Women 2024"]
[Site "Liaocheng"]
[Date "2024.04.26"]
[Round "11.14"]
[White "Peng, Jingyi(Gd)"]
[Black "Li, Peishan"]
[Result "1-0"]
[ECO "A14"]
[WhiteElo "1725"]
[BlackElo "1647"]
[Annotator "NA"]
[PlyCount "105"]
[EventDate "2024.04.24"]
[EventType "swiss"]
[EventCountry "CHN"]
[SourceTitle "playchess.com"]
[Source "ChessBase"]
[SourceQuality "1"]
[TimeControl "5400+30"]

1. Nf3 {[%emt 0:00:09]} d5 {[%emt 0:00:06]} 2. g3 {[%emt 0:00:07]} Nf6 {[%emt 0:00:05]} 3. Bg2 {[%emt 0:00:14]} e6 {[%emt 0:00:07]} 4. c4 {[%emt 0:00:19]} Be7 {[%emt 0:00:11]} 5. b3 {[%emt 0:00:20]} O-O {[%emt 0:00:16]} 6. Bb2 {[%emt 0:00:27]} b6 {[%emt 0:00:26]} 7. O-O {[%emt 0:00:11]} Bb7 {[%emt 0:00:03]} 8. e3 {[%emt 0:00:08]} Nbd7 {[%emt 0:00:26]} 9. Qe2 {[%emt 0:00:08]} c5 {[%emt 0:00:10]} 10. Rd1 {[%emt 0:00:08]} Qc7 {[%emt 0:00:13]} 11. Nc3 {[%emt 0:00:42]} Rac8 {[%emt 0:00:38]} 12. Rac1 {[%emt 0:00:28]} Rfd8 {[%emt 0:01:08]} 13. cxd5 {[%emt 0:00:18]} exd5 {[%emt 0:09:28]} 14. d4 {[%emt 0:00:07]} Bc6 {[%emt 0:06:18]} 15. Qd3 {[%emt 0:06:24]} Qb7 {[%emt 0:06:59]} 16. h3 {[%emt 0:05:14]} c4 {[%emt 0:10:05]} 17. Qb1 {[%emt 0:01:16]} b5 {[%emt 0:01:41]} 18. Ne2 {[%emt 0:02:05]} b4 {[%emt 0:02:02]} 19. Ne5 {[%emt 0:02:23]} c3 {[%emt 0:02:23]} 20. Ba1 {[%emt 0:00:09]} Bb5 {[%emt 0:04:53]} 21. Nf4 {[%emt 0:00:59]} Bd6 {[%emt 0:08:52]} 22. Qf5 {[%emt 0:02:28]} Nb6 {[%emt 0:09:17]} 23. g4 {[%emt 0:01:38]} Bd7 {[%emt 0:03:47]} 24. Qc2 {[%emt 0:02:22]} h6 {[%emt 0:02:13]} 25. Nfd3 {[%emt 0:01:17]} Bb5 {[%emt 0:02:37]} 26. f4 {[%emt 0:00:59]} Ne4 {[%emt 0:04:49]} 27. Bxe4 {[%emt 0:01:51]} dxe4 {[%emt 0:00:04]} 28. Nf2 {[%emt 0:00:05]} Bxe5 {[%emt 0:00:03]} 29. fxe5 {[%emt 0:01:10]} Bc6 {[%emt 0:01:14]} 30. Nh1 {[%emt 0:01:29]} Nd5 {[%emt 0:04:59]} 31. Qf2 {[%emt 0:00:23]} f6 {[%emt 0:01:58]} 32. Ng3 {[%emt 0:00:56]} fxe5 {[%emt 0:00:11]} 33. dxe5 {[%emt 0:01:24]} Qe7 {[%emt 0:00:28]} 34. Rd4 {[%emt 0:01:02]} Qxe5 {[%emt 0:00:07]} 35. Rxe4 {[%emt 0:00:05]} Qc7 {[%emt 0:01:31]} 36. Nf5 {[%emt 0:00:47]} Re8 {[%emt 0:01:02]} 37. Rc4 {[%emt 0:00:36]} a5 {[%emt 0:03:33]} 38. a3 {[%emt 0:06:40]} Nb6 {[%emt 0:01:29]} 39. Rd4 {[%emt 0:01:22]} Rcd8 {[%emt 0:00:52]} 40. axb4 {[%emt 0:02:28]} Rxd4 {[%emt 0:00:08]} 41. Bxc3 {[%emt 0:07:11]} Rd5 {[%emt 0:05:06]} 42. Nxg7 {[%emt 0:02:00]} Re7 {[%emt 0:00:43]} 43. Nf5 {[%emt 0:06:29]} Rxf5 {[%emt 0:01:26]} 44. gxf5 {[%emt 0:00:10]} Qd6 {[%emt 0:02:03]} 45. bxa5 {[%emt 0:02:22]} Qd5 {[%emt 0:00:41]} 46. Qg3+ {[%emt 0:02:41]} Kf8 {[%emt 0:00:39]} 47. Kh2 {[%emt 0:00:10]} Nc8 {[%emt 0:04:37]} 48. Bb4 {[%emt 0:00:49]} Ke8 {[%emt 0:00:14]} 49. Qg6+ {[%emt 0:05:47]} Kd7 {[%emt 0:00:25]} 50. Qxc6+ {[%emt 0:01:52]} Qxc6 {[%emt 0:00:04]} 51. Rxc6 {[%emt 0:00:06]} Re4 {[%emt 0:01:00]} 52. Rxc8 {[%emt 0:02:01]} Kxc8 {[%emt 0:00:13]} 53. f6 {[%emt 0:00:15]} 1-0

[Event "Chinese Championship-B Women 2024"]
[Site "Liaocheng"]
[Date "2024.04.26"]
[Round "11.15"]
[White "Zheng, Qingyu"]
[Black "Liu, Youyin"]
[Result "1/2-1/2"]
[ECO "D02"]
[WhiteElo "1547"]
[BlackElo "1840"]
[Annotator "NA"]
[PlyCount "120"]
[EventDate "2024.04.24"]
[EventType "swiss"]
[EventCountry "CHN"]
[SourceTitle "playchess.com"]
[Source "ChessBase"]
[SourceQuality "1"]
[TimeControl "5400+30"]

{[%evp 14,120,4,32767,14,1,33,32767,18,17,32767,32,13,6,32767,32767,32767,32767,32767,0,0,32767,-4,-10,5,0,0,12,16,12,7,32767,0,0,29,-13,13,0,35,13,18,13,35,13,152,107,161,139,161,56,68,55,75,69,48,17,23,16,49,31,36,43,56,17,116,-49,32767,-28,-43,-101,-105,-88,-94,-949,-1147,-1312,-836,-704,-792,-1189,-58,-75,-93,32767,32767,32767,32767,-8,0,32767,32767,32767,32767,32767,32767,32767,32767,32767,0,0,0,0,32767,0,8,8,8,8,8]} 1. d4 {[%emt 0:00:04]} d5 {[%emt 0:00:05]} 2. Nf3 {[%emt 0:00:03]} Nf6 {[%emt 0:02:03]} 3. Bf4 {[%emt 0:00:05]} Bf5 {[%emt 0:00:59]} 4. e3 {[%emt 0:00:05]} e6 {[%emt 0:00:15]} 5. Bd3 {[%emt 0:00:12]} Bxd3 {[%emt 0:00:21]} 6. Qxd3 {[%emt 0:00:06]} Nbd7 {[%emt 0:07:28]} 7. Nbd2 {[%emt 0:00:26] 7.0-0 gains popularity. D02: 1 d4 d5 2 Nf3 sidelines, including 2...Nf6 3 g3 and 2...Nf6 3 Bf4.} c5 {[%emt 0:13:00]} 8. c3 {[%emt 0:01:41]} c4 {[%emt 0:07:32]} 9. Qc2 {[%emt 0:00:50]} Nh5 {[%emt 0:02:25]} 10. Bg3 {[%emt 0:03:07]} Nxg3 {[%emt 0:00:49]} 11. hxg3 {[%emt 0:00:06]} h6 {[%emt 0:00:16]} 12. b3 $146 {[%emt 0:01:35]} ({Predecessor:} 12. e4 dxe4 13. Qxe4 Qc7 14. Qe2 Nb6 15. Ne5 Rc8 16. f4 Be7 17. Ndf3 {1-0 Irion,A-Vogelsang,T NRW-chT U18 Germany 1994}) 12... b5 {[%emt 0:00:20]} 13. a4 {[%emt 0:01:19]} a6 {[%emt 0:00:16]} 14. O-O {[%emt 0:00:45]} Be7 {[%emt 0:03:13]} 15. e4 {[%emt 0:03:04]} O-O {[%emt 0:02:22]} 16. Rfe1 {[%emt 0:02:15]} Nb6 {[%emt 0:02:44]} 17. axb5 {[%emt 0:05:11]} axb5 {[%emt 0:00:59]} 18. Rxa8 {[%emt 0:02:30]} Nxa8 {[%emt 0:01:32]} 19. Ne5 {[%emt 0:02:26]} Bd6 {[%emt 0:10:10]} 20. exd5 {[%emt 0:04:09]} Bxe5 {[%emt 0:08:08]} 21. Rxe5 {[%emt 0:01:32]} exd5 {[%emt 0:00:09]} 22. bxc4 {[%emt 0:03:05]} bxc4 {[%emt 0:01:27]} 23. Qa4 {[%emt 0:05:21]} Nc7 {[%emt 0:00:42]} 24. Nf1 {[%emt 0:01:20]} Re8 {[%emt 0:00:26]} 25. Rxe8+ {[%emt 0:00:44]} Qxe8 {[%emt 0:02:31]} 26. Qa5 {[%emt 0:02:40]} Qc6 {[%emt 0:04:43]} 27. Ne3 {[%emt 0:01:56]} Kh7 {[%emt 0:02:32]} 28. Qb4 {[%emt 0:01:03]} Ne8 {[%emt 0:14:13]} (28... Nb5 $11 {keeps the balance.}) 29. Qe7 {[%emt 0:02:14]} Nd6 {[%emt 0:03:31]} (29... Qe6 $16 {was worth a try.} 30. Nxd5 Qxe7 31. Nxe7 Nd6) 30. Qe5 {[%emt 0:01:50]} Nb5 {[%emt 0:03:24]} 31. Qxd5 {[%emt 0:02:42]} (31. Nxd5 $16 Qd7 32. Ne3) 31... Qxd5 {[%emt 0:00:11]} 32. Nxd5 {[%emt 0:00:03]} Kg6 {[%emt 0:00:20]} 33. f3 {[%emt 0:00:54]} Kf5 {[%emt 0:02:33]} 34. Kf2 {[%emt 0:00:07]} (34. g4+ $16 Ke6 35. Nf4+ Kd6 36. Ne2) 34... Ke6 {[%emt 0:00:13]} 35. Nf4+ {[%emt 0:00:17]} Kd6 {[%emt 0:01:13]} 36. Ne2 {[%emt 0:00:04]} f5 {[%emt 0:01:19]} 37. Ke3 {[%emt 0:00:38]} g5 {[%emt 0:00:25]} 38. Kd2 {[%emt 0:02:30]} Nc7 {[%emt 0:00:58]} (38... h5 $1 $11) 39. f4 {[%emt 0:02:47]} (39. g4 $16 f4 40. g3) 39... g4 {[%emt 0:00:34]} 40. Nc1 {[%emt 0:04:27]} Nd5 {[%emt 0:00:17]} 41. Na2 {[%emt 0:00:32]} (41. Ne2 $15) 41... Nf6 {[%emt 0:00:13]} 42. Nb4 {[%emt 0:00:43]} Ne4+ {[%emt 0:00:11]} 43. Kc2 $2 {[%emt 0:00:04]} (43. Ke1 $17) 43... Nxg3 {[%emt 0:00:14]} 44. Kb2 {[%emt 0:00:11]} Ne2 {[%emt 0:00:28]} (44... h5 $142 45. Nc2 h4) 45. Nc2 {[%emt 0:00:20]} Nxf4 {[%emt 0:04:04]} 46. Ne3 {[%emt 0:00:08]} Kc6 $2 {[%emt 0:00:51]} ({Black should try} 46... Ke6 $19 47. Kc1 h5) 47. Kc2 $17 {[%emt 0:01:19]} (47. Nxf5 Nxg2 48. Kc2 h5 $19) 47... h5 {[%emt 0:00:35]} 48. g3 {[%emt 0:00:27]} Nd5 {[%emt 0:00:21]} 49. Nxf5 {[%emt 0:00:13]} Nf6 {[%emt 0:00:12]} 50. Ne3 {[%emt 0:01:34]} Ne4 {[%emt 0:00:21]} 51. Nxc4 {[%emt 0:00:47]} Nxg3 {[%emt 0:00:07]} 52. Ne5+ {[%emt 0:00:19]} Kd6 {[%emt 0:00:46]} 53. Kd3 {[%emt 0:00:31]} Nf5 {[%emt 0:00:16]} 54. Ke4 {[%emt 0:01:49]} Ng3+ {[%emt 0:00:02]} 55. Ke3 {[%emt 0:01:27]} Ke6 {[%emt 0:01:13]} 56. c4 {[%emt 0:01:52]} Nf5+ {[%emt 0:00:06]} 57. Ke4 {[%emt 0:00:21]} Nd6+ {[%emt 0:00:23]} 58. Kf4 {[%emt 0:00:45]} Nxc4 {[%emt 0:00:39]} 59. Nxc4 {[%emt 0:00:07]} Kd5 {[%emt 0:00:03]} 60. Ne3+ {[%emt 0:00:31]} Kxd4 {[%emt 0:00:08]} 1/2-1/2